fUST/lending_fUST_20240730
["ID","MTS","AMOUNT","RATE_DAILY","PERIOD"]
[333681826,1722347465920,-516.51219953,0.00014246,2]
[333681827,1722347465931,-500.0,0.00014246,2]
[333681828,1722347465940,-511.5040275,0.00014246,2]
[333681829,1722347465950,-500.0,0.00014246,2]
[333681830,1722347465960,-271.06783923,0.00014246,2]
[333681831,1722347465970,-500.0,0.00014246,2]
[333681832,1722347465979,-500.0,0.00014246,2]
[333681833,1722347465989,-394.9759661,0.00014246,2]
[333681834,1722347466000,-586.8242064,0.00014246,2]
[333681835,1722347466009,-500.0,0.00014246,2]
[333681836,1722347466019,-506.00939958,0.00014246,2]
[333681837,1722347466029,-500.0,0.00014246,2]
[333681838,1722347466038,-500.0,0.00014246,2]
[333681839,1722347466048,-500.0,0.00014246,2]
[333681840,1722347466057,-505.56269311,0.00014246,2]
[333681841,1722347466067,-500.0,0.00014246,2]
[333681842,1722347466077,-500.0,0.00014246,2]
[333681843,1722347466086,-500.0,0.00014246,2]
[333681844,1722347466096,-595.32,0.00014246,2]
[333681845,1722347466105,-500.0,0.00014246,2]
[333681846,1722347466115,-500.0,0.00014246,2]
[333681847,1722347466124,-511.02,0.00014246,2]
[333681848,1722347466134,-500.0,0.00014246,2]
[333681849,1722347466143,-500.0,0.00014246,2]
[333681850,1722347466154,-500.0,0.00014246,2]
[333681851,1722347466165,-505.70084917,0.00014246,2]
[333681852,1722347466174,-500.0,0.00014246,2]
[333681853,1722347466183,-500.0,0.00014246,2]
[333681854,1722347466193,-500.0,0.00014246,2]
[333681855,1722347466203,-500.0,0.00014246,2]
[333681856,1722347466212,-500.0,0.00014246,2]
[333681857,1722347466222,-500.0,0.00014246,2]
[333681858,1722347466232,-217.27111719,0.00014246,2]
[333681859,1722347466241,-500.0,0.00014246,2]
[333681860,1722347466250,-500.0,0.00014246,2]
[333681861,1722347466260,-500.0,0.00014246,2]
[333681862,1722347466269,-500.0,0.00014246,2]
[333681863,1722347466278,-500.0,0.00014246,2]
[333681864,1722347466288,-500.0,0.00014246,2]
[333681865,1722347466380,-500.0,0.00014246,2]
[333681866,1722347466394,-510.31573358,0.00014246,2]
[333681867,1722347466405,-512.15803606,0.00014246,2]
[333681868,1722347466415,-500.0,0.00014246,2]
[333681869,1722347466425,-500.0,0.00014246,2]
[333681870,1722347466436,-526.73,0.00014246,2]
[333681871,1722347466446,-340.89097769,0.00014246,2]
[333681872,1722347466456,-342.16,0.00014246,2]
[333681873,1722347466466,-195.05,0.00014246,2]
[333681874,1722347466476,-628.71,0.00014246,2]
[333681875,1722347466485,-646.98,0.00014246,2]
[333681876,1722347466494,-500.0,0.00014246,2]
[333681877,1722347466503,-211.44,0.00014246,2]
[333681878,1722347466512,-500.0,0.00014246,2]
[333681879,1722347466521,-212.75,0.00014246,2]
[333681880,1722347466532,-500.0,0.00014246,2]
[333681881,1722347466541,-500.0,0.00014246,2]
[333681882,1722347466551,-500.0,0.00014246,2]
[333681883,1722347466559,-500.0,0.00014246,2]
[333681884,1722347466569,-500.0,0.00014246,2]
[333681885,1722347466578,-160.96,0.00014246,2]
[333681886,1722347466587,-500.0,0.00014246,2]
[333681887,1722347466598,-500.0,0.00014246,2]
[333681888,1722347466610,-500.0,0.00014246,2]
[333681889,1722347466620,-210.8,0.00014246,2]
[333681890,1722347466630,-500.0,0.00014246,2]
[333681891,1722347466640,-500.0,0.00014246,2]
[333681892,1722347466651,-500.0,0.00014246,2]
[333681893,1722347466661,-500.0,0.00014246,2]
[333681894,1722347466670,-500.0,0.00014246,2]
[333681895,1722347466680,-500.0,0.00014246,2]
[333681896,1722347466691,-500.0,0.00014246,2]
[333681897,1722347466701,-500.0,0.00014246,2]
[333681898,1722347466713,-500.0,0.00014246,2]
[333681899,1722347466723,-500.0,0.00014246,2]
[333681900,1722347466734,-500.0,0.00014246,2]
[333681901,1722347466743,-500.0,0.00014246,2]
[333681902,1722347466752,-500.0,0.00014246,2]
[333681903,1722347466763,-500.0,0.00014246,2]
[333681904,1722347466773,-208.7,0.00014246,2]
[333681905,1722347466782,-500.0,0.00014246,2]
[333681906,1722347466791,-500.0,0.00014246,2]
[333681907,1722347466803,-500.0,0.00014246,2]
[333681908,1722347466814,-479.7,0.00014246,2]
[333681909,1722347466824,-500.0,0.00014246,2]
[333681910,1722347466836,-500.0,0.00014246,2]
[333681911,1722347466848,-500.06437514,0.00014246,2]
[333681912,1722347466858,-500.0,0.00014246,2]
[333681913,1722347466867,-500.0,0.00014246,2]
[333681914,1722347466877,-500.0,0.00014246,2]
[333681915,1722347466887,-500.0,0.00014246,2]
[333681916,1722347466896,-500.0,0.00014246,2]
[333681917,1722347466905,-500.0,0.00014246,2]
[333681918,1722347466919,-500.0,0.00014246,2]
[333681919,1722347466930,-500.0,0.00014246,2]
[333681920,1722347466941,-500.0,0.00014246,2]
[333681921,1722347466951,-500.0,0.00014246,2]
[333681922,1722347466963,-500.0,0.00014246,2]
[333681923,1722347466972,-500.0,0.00014246,2]
[333681924,1722347466982,-500.0,0.00014246,2]
[333681925,1722347466991,-500.0,0.00014246,2]
[333681926,1722347467001,-500.0,0.00014246,2]
[333681927,1722347467011,-500.0,0.00014246,2]
[333681928,1722347467023,-500.0,0.00014246,2]
[333681929,1722347467033,-500.0,0.00014246,2]
[333681930,1722347467044,-500.0,0.00014246,2]
[333681931,1722347467054,-500.0,0.00014246,2]
[333681932,1722347467064,-500.0,0.00014246,2]
[333681933,1722347467074,-500.0,0.00014246,2]
[333681934,1722347467084,-500.0,0.00014246,2]
[333681935,1722347467094,-500.0,0.00014246,2]
[333681936,1722347467104,-500.0,0.00014246,2]
[333681937,1722347467115,-500.0,0.00014246,2]
[333681938,1722347467125,-500.0,0.00014246,2]
[333681939,1722347467134,-500.0,0.00014246,2]
[333681940,1722347467144,-500.0,0.00014246,2]
[333681941,1722347467154,-500.0,0.00014246,2]
[333681942,1722347467166,-500.0,0.00014246,2]
[333681943,1722347467176,-500.0,0.00014246,2]
[333681944,1722347467186,-500.0,0.00014246,2]
[333681945,1722347467196,-500.0,0.00014246,2]
[333681946,1722347467205,-500.0,0.00014246,2]
[333681947,1722347467214,-500.0,0.00014246,2]
[333681948,1722347467223,-500.0,0.00014246,2]
[333681949,1722347467233,-500.0,0.00014246,2]
[333681950,1722347467242,-500.0,0.00014246,2]
[333681951,1722347467251,-500.0,0.00014246,2]
[333681952,1722347467261,-500.0,0.00014246,2]
[333681953,1722347467270,-500.0,0.00014246,2]
[333681954,1722347467279,-500.0,0.00014246,2]
[333681955,1722347467288,-500.0,0.00014246,2]
[333681956,1722347467298,-549.72182857,0.00014246,2]
[333681957,1722347467307,-447.83,0.00014246,2]
[333681958,1722347467316,-273.74,0.00014246,2]
[333681959,1722347467326,-500.0,0.00014246,2]
[333681960,1722347467337,-500.0,0.00014246,2]
[333681961,1722347467347,-500.0,0.00014246,2]
[333681962,1722347467358,-500.0,0.00014246,2]
[333681963,1722347467368,-500.0,0.00014246,2]
[333681964,1722347467377,-233.81,0.00014246,2]
[333681965,1722347467387,-501.41,0.00014246,2]
[333681966,1722347467395,-607.08,0.00014246,2]
[333681967,1722347467404,-500.0,0.00014246,2]
[333681968,1722347467416,-500.0,0.00014246,2]
[333681969,1722347467425,-502.22,0.00014246,2]
[333681970,1722347467434,-500.0,0.00014246,2]
[333681971,1722347467443,-454.84,0.00014246,2]
[333681972,1722347467454,-456.91,0.00014246,2]
[333681973,1722347467463,-386.12,0.00014246,2]
[333681974,1722347467473,-500.0,0.00014246,2]
[333681975,1722347467482,-500.0,0.00014246,2]
[333681976,1722347467492,-500.0,0.00014246,2]
[333681977,1722347467501,-500.0,0.00014246,2]
[333681978,1722347467512,-523.39975054,0.00014246,2]
[333681979,1722347467523,-177.83,0.00014246,2]
[333681980,1722347467536,-500.0,0.00014246,2]
[333681981,1722347467547,-500.0,0.00014246,2]
[333681982,1722347467559,-500.0,0.00014246,2]
[333681983,1722347467568,-500.0,0.00014246,2]
[333681984,1722347467578,-570.236357,0.00014246,2]
[333681985,1722347467587,-500.0,0.00014246,2]
[333681986,1722347467597,-500.0,0.00014246,2]
[333681987,1722347467608,-500.0,0.00014246,2]
[333681988,1722347467619,-248.44164765,0.00014246,2]
[333681989,1722347467631,-505.16610976,0.00014246,2]
[333681990,1722347467642,-500.0,0.00014246,2]
[333681991,1722347467653,-500.0,0.00014246,2]
[333681992,1722347467665,-500.0,0.00014246,2]
[333681993,1722347467675,-203.23,0.00014246,2]
[333681994,1722347467684,-181.87,0.00014246,2]
[333681995,1722347467694,-556.03,0.00014246,2]
[333681996,1722347467703,-529.33,0.00014246,2]
[333681997,1722347467712,-163.62,0.00014246,2]
[333681998,1722347467721,-500.0,0.00014246,2]
[333681999,1722347467730,-194.48,0.00014246,2]
[333682000,1722347467740,-244.36,0.00014246,2]
[333682001,1722347467750,-500.0,0.00014246,2]
[333682002,1722347467766,-500.0,0.00014246,2]
[333682003,1722347467776,-500.0,0.00014246,2]
[333682004,1722347467785,-235.69782262,0.00014246,2]
[333682005,1722347467795,-500.0,0.00014246,2]
[333682006,1722347467804,-311.37,0.00014246,2]
[333682007,1722347467813,-500.0,0.00014246,2]
[333682008,1722347467822,-473.16045154,0.00014246,2]
[333682009,1722347467832,-500.0,0.00014246,2]
[333682010,1722347467842,-500.0,0.00014246,2]
[333682011,1722347467852,-500.0,0.00014246,2]
[333682012,1722347467861,-157.89768465,0.00014246,2]
[333682013,1722347467871,-500.0,0.00014246,2]
[333682014,1722347467880,-472.69516462,0.00014246,2]
[333682015,1722347467890,-500.0,0.00014246,2]
[333682016,1722347467899,-500.0,0.00014246,2]
[333682017,1722347467911,-500.0,0.00014246,2]
[333682018,1722347467921,-500.0,0.00014246,2]
[333682019,1722347468011,-429.18,0.00014246,2]
[333682020,1722347468021,-500.0,0.00014246,2]
[333682021,1722347468030,-500.0,0.00014246,2]
[333682022,1722347468040,-485.14,0.00014246,2]
[333682023,1722347468049,-500.0,0.00014246,2]
[333682024,1722347468059,-500.0,0.00014246,2]
[333682025,1722347468069,-500.0,0.00014246,2]
[333682026,1722347468078,-500.0,0.00014246,2]
[333682027,1722347468090,-500.0,0.00014246,2]
[333682028,1722347468099,-500.0,0.00014246,2]
[333682029,1722347468109,-500.0,0.00014246,2]
[333682030,1722347468118,-500.0,0.00014246,2]
[333682031,1722347468128,-500.0,0.00014246,2]
[333682032,1722347468137,-500.0,0.00014246,2]
[333682033,1722347468146,-500.0,0.00014246,2]
[333682034,1722347468156,-500.0,0.00014246,2]
[333682035,1722347468166,-581.58,0.00014246,2]
[333682036,1722347468176,-500.0,0.00014246,2]
[333682037,1722347468185,-504.77000058,0.00014246,2]
[333682038,1722347468195,-500.0,0.00014246,2]
[333682039,1722347468205,-500.0,0.00014246,2]
[333682040,1722347468215,-500.0,0.00014246,2]
[333682041,1722347468226,-503.54,0.00014246,2]
[333682042,1722347468238,-500.0,0.00014246,2]
[333682043,1722347468248,-508.49152173,0.00014246,2]
[333682044,1722347468259,-516.91608745,0.00014246,2]
[333682045,1722347468269,-500.0,0.00014246,2]
[333682046,1722347468279,-500.0,0.00014246,2]
[333682047,1722347468288,-605.62,0.00014246,2]
[333682048,1722347468298,-500.0,0.00014246,2]
[333682049,1722347468308,-500.0,0.00014246,2]
[333682050,1722347468317,-585.95,0.00014246,2]
[333682051,1722347468327,-500.0,0.00014246,2]
[333682052,1722347468336,-500.0,0.00014246,2]
[333682053,1722347468346,-500.0,0.00014246,2]
[333682054,1722347468356,-500.0,0.00014246,2]
[333682055,1722347468365,-500.0,0.00014246,2]
[333682056,1722347468377,-500.0,0.00014246,2]
[333682057,1722347468388,-500.0,0.00014246,2]
[333682058,1722347468400,-500.0,0.00014246,2]
[333682059,1722347468410,-500.0,0.00014246,2]
[333682060,1722347468421,-500.0,0.00014246,2]
[333682061,1722347468430,-500.0,0.00014246,2]
[333682062,1722347468440,-544.52,0.00014246,2]
[333682063,1722347468452,-500.0,0.00014246,2]
[333682064,1722347468463,-500.0,0.00014246,2]
[333682065,1722347468473,-500.0,0.00014246,2]
[333682066,1722347468482,-500.0,0.00014246,2]
[333682067,1722347468492,-505.57368615,0.00014246,2]
[333682068,1722347468501,-500.0,0.00014246,2]
[333682069,1722347468511,-500.0,0.00014246,2]
[333682070,1722347468522,-273.02317633,0.00014246,2]
[333682071,1722347468531,-500.0,0.00014246,2]
[333682072,1722347468541,-500.0,0.00014246,2]
[333682073,1722347468552,-500.0,0.00014246,2]
[333682074,1722347468562,-500.0,0.00014246,2]
[333682075,1722347468571,-502.34,0.00014246,2]
[333682076,1722347468581,-500.0,0.00014246,2]
[333682077,1722347468590,-500.0,0.00014246,2]
[333682078,1722347468600,-500.0,0.00014246,2]
[333682079,1722347468609,-500.0,0.00014246,2]
[333682080,1722347468619,-500.0,0.00014246,2]
[333682081,1722347468629,-500.0,0.00014246,2]
[333682082,1722347468640,-500.0,0.00014246,2]
[333682083,1722347468650,-500.0,0.00014246,2]
[333682084,1722347468660,-527.40395362,0.00014246,2]
[333682085,1722347468669,-500.0,0.00014246,2]
[333682086,1722347468679,-500.0,0.00014246,2]
[333682087,1722347468689,-171.14396772,0.00014246,2]
[333682088,1722347468698,-500.0,0.00014246,2]
[333682089,1722347468708,-500.0,0.00014246,2]
[333682090,1722347468718,-500.0,0.00014246,2]
[333682091,1722347468729,-500.0,0.00014246,2]
[333682092,1722347468738,-201.91022087,0.00014246,2]
[333682093,1722347468747,-505.63,0.00014246,2]
[333682094,1722347468760,-233.61649993,0.00014246,2]
[333682095,1722347468769,-500.0,0.00014246,2]
[333682096,1722347468779,-500.0,0.00014246,2]
[333682097,1722347468789,-500.0,0.00014246,2]
[333682098,1722347468798,-500.0,0.00014246,2]
[333682099,1722347468809,-500.0,0.00014246,2]
[333682100,1722347468819,-500.0,0.00014246,2]
[333682101,1722347468829,-500.0,0.00014246,2]
[333682102,1722347468841,-500.0,0.00014246,2]
[333682103,1722347468850,-500.0,0.00014246,2]
[333682104,1722347468861,-500.0,0.00014246,2]
[333682105,1722347468870,-444.32,0.00014246,2]
[333682106,1722347468880,-500.0,0.00014246,2]
[333682107,1722347468890,-500.0,0.00014246,2]
[333682108,1722347468899,-500.0,0.00014246,2]
[333682109,1722347468909,-500.0,0.00014246,2]
[333682110,1722347468920,-500.0,0.00014246,2]
[333682111,1722347468930,-500.0,0.00014246,2]
[333682112,1722347468940,-500.0,0.00014246,2]
[333682113,1722347468951,-500.0,0.00014246,2]
[333682114,1722347468961,-511.11563533,0.00014246,2]
[333682115,1722347468971,-500.0,0.00014246,2]
[333682116,1722347468980,-500.0,0.00014246,2]
[333682117,1722347468990,-500.0,0.00014246,2]
[333682118,1722347468999,-642.51,0.00014246,2]
[333682119,1722347469009,-297.08,0.00014246,2]
[333682120,1722347469020,-500.0,0.00014246,2]
[333682121,1722347469030,-613.42,0.00014246,2]
[333682122,1722347469039,-500.0,0.00014246,2]
[333682123,1722347469050,-571.1,0.00014246,2]
[333682124,1722347469061,-500.0,0.00014246,2]
[333682125,1722347469071,-500.0,0.00014246,2]
[333682126,1722347469081,-500.0,0.00014246,2]
[333682127,1722347469090,-500.0,0.00014246,2]
[333682128,1722347469100,-270.4,0.00014246,2]
[333682129,1722347469109,-500.0,0.00014246,2]
[333682130,1722347469120,-500.0,0.00014246,2]
[333682131,1722347469130,-413.88,0.00014246,2]
[333682132,1722347469140,-575.83593368,0.00014246,2]
[333682133,1722347469150,-500.0,0.00014246,2]
[333682134,1722347469162,-180.2,0.00014246,2]
[333682135,1722347469172,-465.54,0.00014246,2]
[333682136,1722347469182,-500.0,0.00014246,2]
[333682137,1722347469192,-500.0,0.00014246,2]
[333682138,1722347469201,-500.0,0.00014246,2]
[333682139,1722347469211,-500.0,0.00014246,2]
[333682140,1722347469221,-500.0,0.00014246,2]
[333682141,1722347469231,-500.0,0.00014246,2]
[333682142,1722347469240,-561.78,0.00014246,2]
[333682143,1722347469250,-500.0,0.00014246,2]
[333682144,1722347469261,-500.0,0.00014246,2]
[333682145,1722347469272,-310.32,0.00014246,2]
[333682146,1722347469282,-500.0,0.00014246,2]
[333682147,1722347469291,-361.86,0.00014246,2]
[333682148,1722347469300,-642.51,0.00014246,2]
[333682149,1722347469310,-297.08,0.00014246,2]
[333682150,1722347469320,-500.0,0.00014246,2]
[333682151,1722347469330,-375.48,0.00014246,2]
[333682152,1722347469339,-500.0,0.00014246,2]
[333682153,1722347469348,-500.0,0.00014246,2]
[333682154,1722347469357,-500.0,0.00014246,2]
[333682155,1722347469366,-507.41780141,0.00014246,2]
[333682156,1722347469375,-500.0,0.00014246,2]
[333682157,1722347469384,-500.0,0.00014246,2]
[333682158,1722347469395,-500.0,0.00014246,2]
[333682159,1722347469406,-500.0,0.00014246,2]
[333682160,1722347469500,-500.0,0.00014246,2]
[333682161,1722347469510,-500.0,0.00014246,2]
[333682162,1722347469519,-504.77150617,0.00014246,2]
[333682163,1722347469529,-500.0,0.00014246,2]
[333682164,1722347469538,-500.0,0.00014246,2]
[333682165,1722347469547,-500.0,0.00014246,2]
[333682166,1722347469556,-505.86005277,0.00014246,2]
[333682167,1722347469566,-500.0,0.00014246,2]
[333682168,1722347469575,-261.94,0.00014246,2]
[333682169,1722347469584,-500.0,0.00014246,2]
[333682170,1722347469593,-500.0,0.00014246,2]
[333682171,1722347469603,-625.56,0.00014246,2]
[333682172,1722347469612,-500.0,0.00014246,2]
[333682173,1722347469622,-3552.09,0.00014246,2]
[333682174,1722347469632,-500.0,0.00014246,2]
[333682175,1722347469642,-500.0,0.00014246,2]
[333682176,1722347469653,-500.0,0.00014246,2]
[333682177,1722347469665,-500.0,0.00014246,2]
[333682178,1722347469674,-500.0,0.00014246,2]
[333682179,1722347469683,-500.0,0.00014246,2]
[333682180,1722347469692,-500.0,0.00014246,2]
[333682181,1722347469701,-432.71,0.00014246,2]
[333682182,1722347469710,-500.0,0.00014246,2]
[333682183,1722347469720,-500.0,0.00014246,2]
[333682184,1722347469729,-500.0,0.00014246,2]
[333682185,1722347469738,-638.35,0.00014246,2]
[333682186,1722347469747,-500.0,0.00014246,2]
[333682187,1722347469759,-500.0,0.00014246,2]
[333682188,1722347469769,-432.27,0.00014246,2]
[333682189,1722347469778,-500.0,0.00014246,2]
[333682190,1722347469787,-496.97,0.00014246,2]
[333682191,1722347469798,-500.0,0.00014246,2]
[333682192,1722347469807,-274.13,0.00014246,2]
[333682193,1722347469817,-500.0,0.00014246,2]
[333682194,1722347469826,-323.24,0.00014246,2]
[333682195,1722347469837,-500.0,0.00014246,2]
[333682196,1722347469849,-500.0,0.00014246,2]
[333682197,1722347469858,-500.0,0.00014246,2]
[333682198,1722347469868,-500.0,0.00014246,2]
[333682199,1722347469878,-500.0,0.00014246,2]
[333682200,1722347469887,-500.0,0.00014246,2]
[333682201,1722347469897,-500.0,0.00014246,2]
[333682202,1722347469906,-500.0,0.00014246,2]
[333682203,1722347469918,-500.0,0.00014246,2]
[333682204,1722347469927,-500.0,0.00014246,2]
[333682205,1722347469937,-209.32,0.00014246,2]
[333682206,1722347469946,-250.2,0.00014246,2]
[333682207,1722347469956,-209.32,0.00014246,2]
[333682208,1722347469965,-554.27,0.00014246,2]
[333682209,1722347469975,-552.58,0.00014246,2]
[333682210,1722347469984,-549.13,0.00014246,2]
[333682211,1722347469993,-500.0,0.00014246,2]
[333682212,1722347470003,-500.0,0.00014246,2]
[333682213,1722347470012,-500.0,0.00014246,2]
[333682214,1722347470021,-500.0,0.00014246,2]
[333682215,1722347470031,-410.11,0.00014246,2]
[333682216,1722347470040,-458.67,0.00014246,2]
[333682217,1722347470049,-562.61,0.00014246,2]
[333682218,1722347470059,-692.84,0.00014246,2]
[333682219,1722347470069,-6579.48,0.00014246,2]
[333682220,1722347470079,-605.15,0.00014246,2]
[333682221,1722347470089,-1368.41,0.00014246,2]
[333682222,1722347470099,-2000.0,0.00014246,2]
[333682223,1722347470108,-2000.0,0.00014246,2]
[333682224,1722347470123,-284.219966,0.00014246,2]
[333682225,1722347470141,-831.642897,0.00014246,2]
[333682226,1722347470157,-831.642895,0.00014246,2]
[333682227,1722347470175,-493.215535,0.00014246,2]
[333682228,1722347470194,-493.215541,0.00014246,2]
[333682229,1722347470209,-631.183748,0.00014246,2]
[333682230,1722347470229,-631.183753,0.00014246,2]
[333682231,1722347470242,-151.0,0.00014246,2]
[333682232,1722347470258,-365.581351,0.00014246,2]
[333682233,1722347470278,-365.581346,0.00014246,2]
[333682234,1722347470295,-179.301266,0.00014246,2]
[333682235,1722347470307,-347.749427,0.00014246,2]
[333682236,1722347470325,-179.301272,0.00014246,2]
[333682237,1722347470340,-347.749434,0.00014246,2]
[333682238,1722347470357,-325.463201,0.00014247,2]
[333682239,1722347470370,-424.536799,0.00014247,2]
[333682240,1722347470385,-620.00180381,0.00014275,2]
[333682241,1722347470399,-294.1142903,0.00014476,2]
[333682242,1722347470415,-153.0,0.00014476,2]
[333682243,1722347470432,-154.3185983,0.00014476,2]
[333682244,1722347470448,-587.3383587,0.00014476,2]
[333682245,1722347470462,-500.0,0.00014506,2]
[333682246,1722347470476,-500.0,0.00014509,2]
[333682247,1722347470490,-500.0,0.0001452,2]
[333682248,1722347470504,-500.0,0.0001452,2]
[333682249,1722347470518,-500.0,0.0001452,2]
[333682250,1722347470532,-500.0,0.0001452,2]
[333682251,1722347470548,-500.0,0.0001452,2]
[333682252,1722347470563,-521.85,0.0001452,2]
[333682253,1722347470578,-500.0,0.0001452,2]
[333682254,1722347470594,-500.0,0.0001452,2]
[333682255,1722347470609,-500.0,0.0001452,2]
[333682256,1722347470627,-500.0,0.0001452,2]
[333682257,1722347470642,-500.0,0.0001452,2]
[333682258,1722347470658,-500.0,0.0001452,2]
[333682259,1722347470673,-500.0,0.0001452,2]
[333682260,1722347470687,-500.0,0.0001452,2]
[333682261,1722347470701,-950.33,0.0001452,2]
[333682262,1722347470715,-507.95388418,0.0001452,2]
[333682263,1722347470729,-500.0,0.0001452,2]
[333682264,1722347470742,-500.0,0.0001452,2]
[333682265,1722347470758,-500.0,0.0001452,2]
[333682266,1722347470772,-1064.41,0.0001452,2]
[333682267,1722347470786,-508.06955036,0.0001452,2]
[333682268,1722347470799,-500.0,0.0001452,2]
[333682269,1722347470813,-500.0,0.0001452,2]
[333682270,1722347470828,-1401.73,0.0001452,2]
[333682271,1722347470843,-500.0,0.0001452,2]
[333682272,1722347470857,-511.45,0.0001452,2]
[333682273,1722347470872,-599.59,0.0001452,2]
[333682274,1722347470887,-786.59,0.0001452,2]
[333682275,1722347470903,-1405.12,0.0001452,2]
[333682276,1722347470918,-500.0,0.0001452,2]
[333682277,1722347470931,-451.64288545,0.0001452,2]
[333682278,1722347470944,-500.0,0.0001452,2]
[333682279,1722347470959,-1182.37,0.0001452,2]
[333682280,1722347470973,-1132.06,0.0001452,2]
[333682281,1722347470987,-717.88,0.0001452,2]
[333682282,1722347471002,-500.0,0.0001452,2]
[333682283,1722347471015,-500.0,0.0001452,2]
[333682284,1722347471029,-500.0,0.0001452,2]
[333682285,1722347471043,-500.0,0.0001452,2]
[333682286,1722347471057,-500.0,0.0001452,2]
[333682287,1722347471072,-500.0,0.0001452,2]
[333682288,1722347471086,-500.0,0.0001452,2]
[333682289,1722347471100,-500.0,0.0001452,2]
[333682290,1722347471225,-1046.37,0.0001452,2]
[333682291,1722347471235,-500.0,0.0001452,2]
[333682292,1722347471244,-500.0,0.0001452,2]
[333682293,1722347471254,-500.0,0.0001452,2]
[333682294,1722347471263,-500.0,0.0001452,2]
[333682295,1722347471273,-1059.36,0.0001452,2]
[333682296,1722347471282,-500.0,0.0001452,2]
[333682297,1722347471291,-1086.91,0.0001452,2]
[333682298,1722347471300,-1067.24,0.0001452,2]
[333682299,1722347471309,-500.0,0.0001452,2]
[333682300,1722347471318,-500.0,0.0001452,2]
[333682301,1722347471327,-500.0,0.0001452,2]
[333682302,1722347471337,-809.95,0.0001452,2]
[333682303,1722347471346,-500.0,0.0001452,2]
[333682304,1722347471355,-1009.09,0.0001452,2]
[333682305,1722347471364,-500.0,0.0001452,2]
[333682306,1722347471373,-500.0,0.0001452,2]
[333682307,1722347471383,-500.0,0.0001452,2]
[333682308,1722347471392,-1220.36,0.0001452,2]
[333682309,1722347471401,-2711.51,0.0001452,2]
[333682310,1722347471412,-500.0,0.0001452,2]
[333682311,1722347471421,-500.0,0.0001452,2]
[333682312,1722347471431,-500.0,0.0001452,2]
[333682313,1722347471440,-500.0,0.0001452,2]
[333682314,1722347471451,-500.0,0.0001452,2]
[333682315,1722347471462,-500.0,0.0001452,2]
[333682316,1722347471471,-500.0,0.0001452,2]
[333682317,1722347471481,-500.0,0.0001452,2]
[333682318,1722347471490,-880.26,0.0001452,2]
[333682319,1722347471498,-500.0,0.0001452,2]
[333682320,1722347471508,-516.22,0.0001452,2]
[333682321,1722347471520,-500.0,0.0001452,2]
[333682322,1722347471530,-500.0,0.0001452,2]
[333682323,1722347471540,-1432.43,0.0001452,2]
[333682324,1722347471550,-500.0,0.0001452,2]
[333682325,1722347471560,-500.0,0.0001452,2]